bitfinex/quotes_BTCUSD_20250418
["timestamp","ask_amount","ask_price","bid_price","bid_amount"]
[1744999189866,0.25138292,84460.0,84457.0,0.23680592]
[1744999190095,0.00274452,84459.0,84457.0,0.24864626]
[1744999190517,0.24863346,84462.0,84459.0,0.24864013]
[1744999194477,0.24863346,84462.0,84460.0,0.23679845]
[1744999194681,0.0118395,84463.0,84460.0,0.23679845]
[1744999195610,0.23679568,84461.0,84457.0,0.24864626]
[1744999196095,0.23679568,84461.0,84458.0,0.23680354]
[1744999196551,0.24863546,84461.0,84458.0,0.23680354]
[1744999197977,0.24863546,84461.0,84458.0,0.23680391]
[1744999198102,0.23680012,84460.0,84457.0,0.24864723]
[1744999198522,0.24864004,84460.0,84458.0,0.23680409]
[1744999198731,0.01183978,84461.0,84459.0,0.23680128]
[1744999198962,0.24863028,84463.0,84459.0,0.01184006]
[1744999199176,0.24863028,84463.0,84460.0,0.01183992]
[1744999199414,0.0118395,84463.0,84461.0,0.23679381]
[1744999199617,0.24863029,84463.0,84461.0,0.23679381]
[1744999199828,0.24862491,84465.0,84462.0,0.23679287]
[1744999200064,0.23678841,84464.0,84461.0,0.24863527]
[1744999200487,0.23679112,84463.0,84461.0,0.24863527]
[1744999201404,0.23714912,84466.0,84463.0,0.24862928]
[1744999201618,0.01183922,84465.0,84462.0,0.24863251]
[1744999201825,0.24862648,84465.0,84462.0,0.24863251]
[1744999202228,0.23678801,84464.0,84462.0,0.24863251]
[1744999202476,0.23714916,84466.0,84463.0,0.24862957]
[1744999202651,0.23714916,84466.0,84462.0,0.24863251]
[1744999202652,0.23678676,84465.0,84462.0,0.24863251]
[1744999203499,0.2367867,84465.0,84463.0,0.23679007]
[1744999203704,0.2367867,84465.0,84461.0,0.24863526]
[1744999204022,0.24862592,84465.0,84461.0,0.24863526]
[1744999204145,0.23678871,84464.0,84461.0,0.24863526]
[1744999204581,0.23678871,84464.0,84462.0,0.23679278]
[1744999204994,0.23678871,84464.0,84461.0,0.24863526]
[1744999206474,0.23679027,84463.0,84461.0,0.24863526]
[1744999206956,0.23679027,84463.0,84461.0,0.01183978]
[1744999207150,0.23679027,84463.0,84461.0,0.24863497]
[1744999208138,0.23679027,84463.0,84455.0,0.3448874]
[1744999208139,0.2368125,84455.0,84452.0,0.34]
[1744999208353,0.01184034,84457.0,84455.0,0.2368125]
[1744999209240,0.01184146,84449.0,84446.0,0.34]
[1744999209446,0.23682877,84450.0,84449.0,0.01187429]
[1744999209665,0.23682877,84450.0,84448.0,0.34]
[1744999210356,0.24866571,84451.0,84449.0,0.23682801]
[1744999211021,0.24866732,84452.0,84451.0,0.34]
[1744999211435,0.24865904,84453.0,84451.0,0.34]
[1744999211623,0.23682091,84452.0,84451.0,0.34]
[1744999213219,0.24865904,84453.0,84451.0,0.34]
[1744999213413,0.23682091,84452.0,84451.0,0.34]
[1744999213614,0.24865904,84453.0,84448.0,0.35849875]
[1744999213848,0.23682091,84452.0,84450.0,0.34]
[1744999214426,0.24866733,84451.0,84448.0,0.26731679]
[1744999214635,0.24866575,84451.0,84448.0,0.01849875]
[1744999214936,0.24866496,84451.0,84448.0,0.01849875]
[1744999215111,0.23682652,84450.0,84448.0,0.01849875]
[1744999215331,0.23682932,84449.0,84448.0,0.01849875]
[1744999216321,0.23782932,84449.0,84448.0,0.01849875]
[1744999216694,0.35727723,84449.0,84448.0,0.01849875]
[1744999222030,0.23685457,84440.0,84437.0,0.46188782]
[1744999222459,0.23685457,84440.0,84438.0,0.23685974]
[1744999222654,0.24869467,84441.0,84438.0,0.23685974]
[1744999223026,0.24869556,84441.0,84438.0,0.24870274]
[1744999223201,0.23685476,84440.0,84438.0,0.24874783]
[1744999223565,0.23685476,84440.0,84438.0,0.26042945]
[1744999224121,0.24869556,84441.0,84438.0,0.01172671]
[1744999224378,0.24869556,84441.0,84438.0,0.248586]
[1744999224817,0.24869556,84441.0,84439.0,0.23685715]
[1744999225017,0.24869556,84441.0,84438.0,0.260429]
[1744999226148,0.01184258,84441.0,84439.0,0.23685726]
[1744999228750,0.01184244,84442.0,84440.0,0.23685457]
[1744999231744,0.24869277,84442.0,84439.0,0.24870012]
[1744999232059,0.24869277,84442.0,84440.0,0.2368535]
[1744999232253,0.01184244,84442.0,84440.0,0.2368535]
[1744999232875,0.23684832,84444.0,84441.0,0.23684939]
[1744999233027,0.23684836,84443.0,84440.0,0.24869622]
[1744999234040,0.2368492,84442.0,84440.0,0.24869622]
[1744999234240,0.24869066,84443.0,84440.0,0.24869622]
[1744999235050,0.24869047,84444.0,84440.0,0.24869622]
[1744999235694,0.23684443,84444.0,84442.0,0.23684827]
[1744999236507,0.23684443,84444.0,84442.0,0.24869071]
[1744999237128,0.23684615,84443.0,84440.0,0.24869531]
[1744999237307,0.23684678,84443.0,84441.0,0.23684947]
[1744999237509,0.24869352,84444.0,84441.0,0.24869205]
[1744999237709,0.23684615,84443.0,84441.0,0.24869205]
[1744999238599,0.23684615,84443.0,84441.0,0.01184258]
[1744999238799,0.23684615,84443.0,84441.0,0.24869351]
[1744999239028,0.23684896,84442.0,84440.0,0.24869685]
[1744999240049,0.23684953,84442.0,84440.0,0.24869685]
[1744999240255,0.24868845,84443.0,84440.0,0.24869685]
[1744999241472,0.23684937,84442.0,84440.0,0.24869685]
[1744999241854,0.24868845,84443.0,84440.0,0.24869685]
[1744999243090,0.24868845,84443.0,84441.0,0.23685159]
[1744999243652,0.24868845,84443.0,84440.0,0.24869685]
[1744999249191,0.23685041,84442.0,84440.0,0.01184272]
[1744999249354,0.24868845,84443.0,84440.0,0.24869634]
[1744999250187,0.23684949,84442.0,84440.0,0.24869634]
[1744999251430,0.23684949,84442.0,84440.0,0.24869703]
[1744999252293,0.23684949,84442.0,84439.0,0.24869953]
[1744999252914,0.24868845,84443.0,84440.0,0.24869485]
[1744999253576,0.2368502,84442.0,84440.0,0.24869485]
[1744999254012,0.23685176,84441.0,84439.0,0.24869953]
[1744999254214,0.24869434,84441.0,84438.0,0.01172671]
[1744999254594,0.24869434,84441.0,84438.0,0.24858461]
[1744999254747,0.24869434,84441.0,84439.0,0.23685656]
[1744999257708,0.23685457,84440.0,84438.0,0.01172671]
[1744999257921,0.23685317,84441.0,84439.0,0.01184286]
[1744999258288,0.23685498,84440.0,84438.0,0.26042969]
[1744999258470,0.24869575,84441.0,84438.0,0.26042969]
[1744999259456,0.24869575,84441.0,84439.0,0.23685712]
[1744999259747,0.01184258,84441.0,84439.0,0.23685712]
[1744999259946,0.24869479,84441.0,84439.0,0.23685712]
[1744999260372,0.24869479,84441.0,84439.0,0.08146985]
[1744999261735,0.24869173,84442.0,84439.0,0.08146985]
[1744999263048,0.23685246,84441.0,84439.0,0.08146985]
[1744999263251,0.24869173,84442.0,84439.0,0.08146985]
[1744999264313,0.24869173,84442.0,84440.0,0.23685395]
[1744999267965,0.23685362,84441.0,84438.0,0.26042982]
[1744999268402,0.23685362,84441.0,84439.0,0.23685693]
[1744999269342,0.2368565,84440.0,84438.0,0.24858689]
[1744999269783,0.23685492,84440.0,84438.0,0.24858689]
[1744999270045,0.2486962,84441.0,84438.0,0.24858689]
[1744999270556,0.2486962,84441.0,84438.0,0.26042989]
[1744999271215,0.23685737,84439.0,84438.0,4.509e-05]
[1744999271435,0.40150528,84439.0,84438.0,4.509e-05]
[1744999271602,0.44860528,84439.0,84438.0,4.509e-05]
[1744999272371,0.47077839,84439.0,84438.0,4.509e-05]
[1744999272990,0.44860528,84439.0,84438.0,4.509e-05]
[1744999274049,0.47075916,84439.0,84438.0,4.509e-05]
[1744999274779,0.8196272,84439.0,84438.0,4.509e-05]
[1744999275021,0.83416805,84439.0,84438.0,4.509e-05]
[1744999276470,0.23689104,84427.0,84426.0,0.000842]
[1744999276678,0.45053895,84427.0,84426.0,0.000842]
[1744999277080,0.47269283,84427.0,84426.0,0.000842]
[1744999279207,0.45053895,84427.0,84426.0,0.000842]
[1744999290538,0.35633895,84427.0,84426.0,0.000842]
[1744999290750,0.23688233,84431.0,84427.0,0.01184455]
[1744999290957,0.11944791,84430.0,84427.0,0.2487337]
[1744999291166,0.23688647,84429.0,84426.0,0.23773549]
[1744999291379,0.23688647,84429.0,84427.0,0.2368897]
[1744999291597,0.36817473,84430.0,84427.0,0.2368897]
[1744999291809,0.23687859,84432.0,84429.0,0.24872797]
[1744999292011,0.23688236,84431.0,84427.0,0.24873443]
[1744999292639,0.2487297,84429.0,84426.0,0.01389828]
[1744999292840,0.23689094,84428.0,84426.0,0.01389828]
[1744999293664,0.2487297,84429.0,84426.0,0.01389828]
[1744999293920,0.2487297,84429.0,84426.0,0.02574297]
[1744999294876,0.2487297,84429.0,84426.0,0.26263635]
[1744999297426,0.23688864,84428.0,84426.0,0.02574297]
[1744999297889,0.2487297,84429.0,84426.0,0.26263581]
[1744999298021,0.23688868,84428.0,84426.0,0.26263581]
[1744999299067,0.2487297,84429.0,84426.0,0.26263581]
[1744999299709,0.23688948,84428.0,84426.0,0.26263581]
[1744999300070,0.23688948,84428.0,84426.0,0.25079186]
[1744999302761,0.24871137,84436.0,84432.0,0.01184385]
[1744999302969,9.607e-05,84439.0,84434.0,0.01184357]
[1744999303181,0.23686237,84438.0,84435.0,0.23686859]
[1744999303382,0.01193893,84439.0,84435.0,0.24871201]
[1744999304028,0.23686323,84437.0,84435.0,0.24871201]
[1744999305062,0.23686148,84438.0,84435.0,0.24871201]
[1744999305435,0.24879821,84439.0,84436.0,0.2368638]
[1744999306058,0.011843,84438.0,84434.0,0.2487098]
[1744999306307,0.23686628,84436.0,84434.0,0.2487098]
[1744999306504,0.23686463,84437.0,84434.0,0.2487098]
[1744999307486,0.24870777,84437.0,84434.0,0.2487098]
[1744999308441,0.24870777,84437.0,84435.0,0.23686816]
[1744999309259,0.011843,84438.0,84435.0,0.23686816]
[1744999309795,0.24879858,84439.0,84436.0,0.23686557]
[1744999309796,0.24879661,84439.0,84436.0,0.23686557]
[1744999310786,0.01193893,84439.0,84437.0,0.23686158]
[1744999312988,9.607e-05,84439.0,84438.0,0.23686018]
[1744999313784,0.23695403,84439.0,84436.0,0.24870885]
[1744999313986,0.23695403,84439.0,84437.0,0.23686194]
[1744999314965,9.607e-05,84439.0,84437.0,0.23686194]
[1744999315534,0.23695546,84439.0,84437.0,0.23686216]
[1744999316460,0.23695546,84439.0,84437.0,0.23686201]
[1744999318302,9.607e-05,84439.0,84437.0,0.23686201]
[1744999318947,0.2369561,84439.0,84436.0,0.24870885]
[1744999319293,0.2369561,84439.0,84437.0,0.2368622]
[1744999321796,9.607e-05,84439.0,84437.0,0.2368622]
[1744999325310,0.23695574,84439.0,84436.0,0.24870885]
[1744999327530,0.23695574,84439.0,84437.0,0.23686257]
[1744999327910,9.607e-05,84439.0,84437.0,0.23686257]
[1744999328967,0.23695505,84439.0,84437.0,0.23686257]
[1744999329315,0.24879791,84439.0,84436.0,0.01184328]
[1744999329737,0.23686249,84438.0,84436.0,0.01184328]
[1744999331332,0.23686249,84438.0,84436.0,0.24870879]
[1744999332803,0.24879791,84439.0,84437.0,0.23686298]
[1744999333029,0.24879791,84439.0,84436.0,0.24870879]
[1744999333848,0.24879791,84439.0,84437.0,0.23686179]
[1744999334046,9.607e-05,84439.0,84438.0,0.23686018]
[1744999335718,9.607e-05,84439.0,84438.0,0.23786018]
[1744999343864,9.607e-05,84439.0,84438.0,0.06818407]
[1744999344576,9.607e-05,84439.0,84438.0,0.001]
[1744999345575,0.23695344,84439.0,84438.0,0.001]
[1744999345780,9.607e-05,84439.0,84438.0,0.001]
[1744999347608,0.23695344,84439.0,84438.0,0.001]
[1744999348918,9.607e-05,84439.0,84438.0,0.001]
[1744999349113,0.23695344,84439.0,84438.0,0.001]
[1744999349612,9.607e-05,84439.0,84438.0,0.001]
[1744999350363,9.607e-05,84439.0,84438.0,0.23786018]
[1744999350618,0.23695344,84439.0,84438.0,0.001]
[1744999371236,0.23695344,84439.0,84436.0,0.24870827]
[1744999372381,9.607e-05,84439.0,84436.0,0.24870827]
[1744999372738,9.607e-05,84439.0,84437.0,0.23686081]
[1744999372913,0.23695463,84439.0,84436.0,0.24870827]
[1744999374620,0.24879749,84439.0,84435.0,0.01184342]
[1744999374826,0.24879749,84439.0,84435.0,0.24871151]
[1744999375261,0.23686232,84438.0,84435.0,0.24871151]
[1744999375466,0.24870532,84438.0,84435.0,0.24871151]
[1744999376519,0.01184314,84437.0,84427.0,0.57689104]
[1744999376723,0.01184413,84430.0,84427.0,0.58873499]
[1744999376875,0.24872892,84430.0,84427.0,0.58873499]
[1744999377080,0.01184413,84430.0,84426.0,0.35289828]
[1744999377258,0.24873221,84429.0,84426.0,0.36474297]
[1744999377464,0.01184427,84429.0,84428.0,0.34]
[1744999379466,0.24872725,84430.0,84428.0,0.57688813]
[1744999380075,0.01184399,84431.0,84429.0,0.23688543]
[1744999380563,0.01184357,84434.0,84432.0,0.23687578]
[1744999381323,0.24871245,84435.0,84432.0,0.23687578]
[1744999381933,0.23687248,84434.0,84432.0,0.23687578]
[1744999382918,0.23687139,84437.0,84433.0,0.2368742]
[1744999383121,0.23686837,84436.0,84433.0,0.24871791]
[1744999383313,0.23686877,84435.0,84433.0,0.24871791]
[1744999384546,0.23687402,84434.0,84431.0,0.01184399]
[1744999384968,0.23687701,84432.0,84429.0,0.01184427]
[1744999385457,0.23687701,84432.0,84430.0,0.2368822]
[1744999386222,0.23687981,84431.0,84429.0,0.24872737]
[1744999386443,0.24872086,84432.0,84429.0,0.24872737]
[1744999387770,0.24872571,84431.0,84429.0,0.34]
[1744999388424,0.23688262,84430.0,84429.0,0.34]
[1744999388632,0.24872571,84431.0,84429.0,0.34]
[1744999389242,0.23689104,84427.0,84426.0,0.000842]
[1744999389822,0.35633895,84427.0,84426.0,0.000842]
[1744999390052,0.40213895,84427.0,84426.0,0.000842]
[1744999406910,0.4242746,84427.0,84426.0,0.000842]
[1744999408279,0.59143469,84426.0,84424.0,1e-08]
[1744999408508,0.58802441,84425.0,84424.0,1e-08]
[1744999408944,0.82492106,84425.0,84424.0,1e-08]
[1744999412459,0.47038021,84425.0,84424.0,1e-08]
[1744999412631,0.44824456,84425.0,84424.0,1e-08]
[1744999416102,0.23695048,84406.0,84403.0,0.096396]
[1744999416474,0.23695048,84406.0,84403.0,0.097396]
[1744999417301,0.23699552,84406.0,84403.0,0.097396]
[1744999417502,0.23699552,84406.0,84404.0,0.01184777]
[1744999417899,0.24884297,84406.0,84403.0,0.001]
[1744999419068,4.504e-05,84406.0,84405.0,0.23695278]
[1744999419244,4.504e-05,84406.0,84405.0,0.28405278]
[1744999419504,4.504e-05,84406.0,84405.0,0.67265278]
[1744999431384,4.504e-05,84406.0,84405.0,0.67365278]
[1744999437653,4.504e-05,84406.0,84405.0,0.62655278]
[1744999444336,4.504e-05,84406.0,84405.0,0.67295278]
[1744999459092,4.504e-05,84406.0,84405.0,0.57795278]
[1744999491235,4.504e-05,84406.0,84405.0,0.57695278]
[1744999500984,4.504e-05,84406.0,84405.0,0.69740069]
[1744999522396,0.0468,84425.0,84424.0,0.23689945]
[1744999522762,0.0478,84425.0,84424.0,0.23689945]
[1744999523428,0.0278,84425.0,84424.0,0.23689945]
[1744999526874,0.001,84425.0,84424.0,0.24871636]
[1744999528577,0.001,84425.0,84424.0,0.58871636]
[1744999550571,0.001,84425.0,84424.0,0.70816427]
[1744999551148,0.0008426,84440.0,84439.0,0.23685737]
[1744999551595,0.0018426,84440.0,84439.0,0.23685737]
[1744999565595,0.0018426,84440.0,84438.0,0.2368593]
[1744999566555,0.0018426,84440.0,84439.0,0.23685737]
[1744999583727,0.0018426,84440.0,84439.0,0.57922586]
[1744999583926,0.0018426,84440.0,84439.0,0.57685737]
[1744999584493,0.0018426,84440.0,84439.0,0.62375737]
[1744999590287,0.0018426,84440.0,84439.0,0.74420528]
[1744999590539,0.0008424,84459.0,84458.0,0.23680409]
[1744999590742,0.00129364,84459.0,84458.0,0.23917188]
[1744999590948,0.00129364,84459.0,84458.0,0.25111251]
[1744999591176,0.00129364,84459.0,84458.0,0.24874472]
[1744999597010,0.00129364,84459.0,84458.0,0.58874472]
[1744999597503,0.00129364,84459.0,84458.0,0.70819263]
[1744999597662,0.00129364,84459.0,84458.0,0.75499263]
[1744999607709,0.00129364,84459.0,84458.0,0.75972363]
[1744999611353,0.00129364,84459.0,84458.0,0.76172364]
[1744999614006,0.00129364,84459.0,84458.0,0.60943743]
[1744999616367,0.00129364,84459.0,84458.0,0.60470643]
[1744999616722,0.00129364,84459.0,84458.0,0.73590643]
[1744999621649,0.00129364,84459.0,84458.0,0.73490643]
[1744999621852,0.00129364,84459.0,84458.0,0.73590643]
[1744999622056,0.00032191,84466.0,84465.0,0.57678446]
[1744999622231,0.00032191,84466.0,84465.0,0.69623237]
[1744999622232,0.00045719,84466.0,84465.0,0.69623237]
[1744999633790,0.00045719,84466.0,84465.0,0.69623237]
[1744999635701,0.00045719,84466.0,84465.0,0.82739237]
[1744999638331,0.00045719,84466.0,84465.0,0.6428835]
[1744999647943,0.0044213,84469.0,84468.0,0.23677605]
[1744999648125,0.0044213,84469.0,84468.0,0.69859126]
[1744999648320,0.0044213,84469.0,84468.0,0.69622396]
[1744999651658,0.0044213,84469.0,84468.0,0.69722397]
[1744999654914,0.0044213,84469.0,84468.0,0.82838397]
[1744999655461,0.0004213,84471.0,84470.0,0.57677045]
[1744999655844,0.0004213,84471.0,84470.0,0.69621836]
[1744999659912,0.0004213,84471.0,84470.0,0.69550644]
[1744999668634,1e-08,84471.0,84470.0,0.74500644]
[1744999669077,1e-08,84477.0,84476.0,0.57675363]
[1744999669245,1e-08,84477.0,84476.0,0.69620154]
[1744999671178,1e-08,84477.0,84476.0,0.69720155]
[1744999671357,1e-08,84477.0,84476.0,0.69620154]
[1744999671562,1e-08,84477.0,84476.0,0.69720155]
[1744999688585,0.03266441,84496.0,84495.0,0.23670039]
[1744999689098,0.03277114,84496.0,84495.0,0.23670039]
[1744999689639,0.03277114,84496.0,84495.0,0.24848652]
[1744999690047,0.03277114,84496.0,84495.0,0.24348652]
[1744999690873,0.03267197,84496.0,84495.0,0.24348652]
[1744999707122,0.03514501,84496.0,84495.0,0.24348652]
[1744999708794,0.03267197,84496.0,84495.0,0.24348652]
[1744999709547,0.00010673,84496.0,84495.0,0.24348652]
[1744999712378,0.00257977,84496.0,84495.0,0.24348652]
[1744999712598,0.00010673,84496.0,84495.0,0.24348652]
[1744999712738,0.00257977,84496.0,84495.0,0.24348652]
[1744999712944,0.01441464,84496.0,84491.0,0.23671126]
[1744999713125,0.0482,84495.0,84494.0,0.23670259]
[1744999713327,0.05067365,84495.0,84494.0,0.23670259]
[1744999713733,0.29921152,84495.0,84492.0,0.24854147]
[1744999714349,0.29921152,84495.0,84493.0,0.2367054]
[1744999714765,0.05067365,84495.0,84494.0,0.23670319]
[1744999715567,0.00247365,84495.0,84494.0,0.23670319]
[1744999715785,0.00010673,84496.0,84495.0,0.23670039]
[1744999716350,0.00255806,84496.0,84495.0,0.23670039]
[1744999725952,0.00255806,84496.0,84493.0,0.24854069]
[1744999726169,0.00255806,84496.0,84493.0,0.01183529]
[1744999726925,0.00255806,84496.0,84495.0,0.23670039]
[1744999727324,0.23670039,84495.0,84492.0,0.24854372]
[1744999727519,0.00244882,84494.0,84492.0,0.01183544]
[1744999727839,0.24853658,84495.0,84493.0,0.23670544]
[1744999728034,0.24853658,84495.0,84492.0,0.2485441]
[1744999729986,0.00010673,84496.0,84494.0,0.23670319]
[1744999730501,0.23680544,84496.0,84494.0,0.23670319]
[1744999731768,0.00010673,84496.0,84494.0,0.23670319]
[1744999733500,0.23680558,84496.0,84494.0,0.23670308]
[1744999734673,0.23680558,84496.0,84494.0,0.23770309]
[1744999735061,0.23670039,84495.0,84494.0,0.00100001]
[1744999735578,0.23680491,84496.0,84494.0,0.00100001]
[1744999736710,0.23670039,84495.0,84494.0,0.00100001]
[1744999736845,0.28410039,84495.0,84494.0,0.00100001]
[1744999738973,0.4035483,84495.0,84494.0,0.00100001]
[1744999741789,0.23673962,84481.0,84480.0,0.01205652]
[1744999741949,0.23673962,84481.0,84480.0,0.01305653]
[1744999742292,0.23917217,84481.0,84480.0,0.00100001]
[1744999743677,0.23676023,84474.0,84472.0,0.24860228]
[1744999744434,0.23675324,84477.0,84475.0,0.01183782]
[1744999744652,0.23675428,84476.0,84473.0,0.2485986]
[1744999744872,0.00243255,84476.0,84473.0,0.2485986]
[1744999745468,0.00243255,84476.0,84474.0,0.23675923]
[1744999745647,0.00243255,84476.0,84475.0,0.34]
[1744999751672,0.23918618,84476.0,84474.0,0.34]
[1744999751919,0.23676204,84473.0,84472.0,0.01183145]
[1744999752298,0.23676484,84472.0,84471.0,0.34]
[1744999752999,0.23676989,84471.0,84468.0,0.58861332]
[1744999753409,0.23676275,84473.0,84470.0,0.35183852]
[1744999753569,0.23676489,84472.0,84470.0,0.58860662]
[1744999753977,0.23676489,84472.0,84470.0,0.36352282]
[1744999754199,0.23676489,84472.0,84470.0,0.3516843]
[1744999754510,0.23676764,84471.0,84470.0,0.3516843]
[1744999757231,0.23920319,84471.0,84470.0,0.3516843]
[1744999758579,0.23679287,84462.0,84461.0,0.000842]
[1744999759108,0.24019577,84462.0,84461.0,0.000842]
[1744999760048,0.35975566,84462.0,84461.0,0.000842]
[1744999760294,0.40775566,84462.0,84461.0,0.000842]
[1744999760494,0.42985923,84462.0,84461.0,0.000842]
[1744999761947,0.40775566,84462.0,84461.0,0.000842]
[1744999764266,0.23679568,84461.0,84460.0,0.000842]
[1744999764468,0.40778357,84461.0,84460.0,0.000842]
[1744999771976,0.40522825,84461.0,84460.0,0.000842]
[1744999787906,0.42735237,84461.0,84460.0,0.000842]
[1744999789446,0.43842867,84461.0,84460.0,0.000842]
[1744999803099,0.42735237,84461.0,84460.0,0.000842]
[1744999805442,0.43843797,84461.0,84460.0,0.000842]
[1744999810513,0.48623797,84461.0,84460.0,0.000842]
[1744999810869,0.49455205,84461.0,84460.0,0.000842]
[1744999815013,0.23685176,84441.0,84438.0,0.07167351]
[1744999815406,0.23908528,84440.0,84438.0,0.30953321]
[1744999817667,0.00222989,84440.0,84438.0,0.30953321]
[1744999819479,0.00222989,84440.0,84439.0,0.23685737]
[1744999821542,0.24869224,84442.0,84440.0,0.23685448]
[1744999821749,0.00222989,84441.0,84440.0,0.23685448]
[1744999822160,0.00222989,84441.0,84439.0,0.23685737]
[1744999822360,0.00222989,84441.0,84439.0,0.23430237]
[1744999822955,0.00222989,84441.0,84440.0,0.23685457]
[1744999825492,0.24868926,84443.0,84441.0,0.23685102]
[1744999825817,0.24868777,84444.0,84441.0,0.01184258]
[1744999826033,0.23684832,84443.0,84441.0,0.01184258]
[1744999826247,0.23684832,84443.0,84441.0,0.24869279]
[1744999826502,0.24868777,84444.0,84441.0,0.24869279]
[1744999826728,0.2368464,84443.0,84441.0,0.24869279]
[1744999827845,0.24868777,84444.0,84442.0,0.23684896]
[1744999828138,0.24868777,84444.0,84441.0,0.24869279]
[1744999828376,0.24867975,84446.0,84442.0,0.23684749]
[1744999828577,0.23684187,84445.0,84442.0,0.24868993]
[1744999829567,0.23684078,84445.0,84442.0,0.24868993]
[1744999830549,0.23684442,84444.0,84442.0,0.01184244]
[1744999830856,0.23684442,84444.0,84442.0,0.24869073]
[1744999831358,0.23684442,84444.0,84442.0,0.01184244]
[1744999831896,0.23684442,84444.0,84442.0,0.24869083]
[1744999832094,0.00223136,84443.0,84442.0,0.24869083]
[1744999832521,0.24868359,84445.0,84442.0,0.24869083]
[1744999832717,0.00223136,84443.0,84442.0,0.24869083]
[1744999832918,0.24868359,84445.0,84442.0,0.24869083]
[1744999833128,0.00223136,84443.0,84442.0,0.24869083]
[1744999833330,0.24868359,84445.0,84442.0,0.24869083]
[1744999833938,0.00223136,84444.0,84442.0,0.24869083]
[1744999837349,0.00223136,84444.0,84443.0,0.23684615]
[1744999839604,0.00223136,84444.0,84442.0,0.24869083]
[1744999839807,0.0118423,84443.0,84439.0,0.2486951]
[1744999840109,0.00223637,84443.0,84440.0,0.01184272]
[1744999841094,0.23908263,84443.0,84440.0,0.24869729]
[1744999845330,0.23684901,84442.0,84440.0,0.24869729]
[1744999845968,0.00223637,84441.0,84440.0,0.24869729]
[1744999847145,0.24868856,84443.0,84440.0,0.24869729]
[1744999847494,0.00223637,84442.0,84440.0,0.24869729]
[1744999847841,0.00223637,84442.0,84441.0,0.23685176]
[1744999848046,0.23684703,84443.0,84440.0,0.24869729]
[1744999848290,0.00223637,84442.0,84440.0,0.24869729]
[1744999848467,0.00223637,84442.0,84441.0,0.23685176]
[1744999848666,0.24869037,84444.0,84441.0,0.23685176]
[1744999848871,0.00223637,84443.0,84441.0,0.01184258]
[1744999849074,0.23684559,84444.0,84441.0,0.24869398]
[1744999849358,0.00223637,84443.0,84441.0,0.24869398]
[1744999850508,0.00223637,84443.0,84442.0,0.23684896]
[1744999851158,0.00223781,84443.0,84442.0,0.23684896]
[1744999851359,0.24868785,84445.0,84442.0,0.23684896]
[1744999851562,0.00223781,84444.0,84442.0,0.23684896]
[1744999854017,0.2390812,84444.0,84442.0,0.23684896]
[1744999854461,0.00223781,84444.0,84443.0,0.23684615]
[1744999854757,0.23684258,84445.0,84442.0,0.23684834]
[1744999854956,0.00223781,84444.0,84442.0,0.23684834]
[1744999856718,0.00223781,84444.0,84443.0,0.23684615]
[1744999859129,0.00223781,84444.0,84442.0,0.23684806]
[1744999860483,0.23908158,84444.0,84442.0,0.23684806]
[1744999862158,0.23908158,84444.0,84441.0,0.24869398]
[1744999862371,0.00223781,84444.0,84442.0,0.23684779]
[1744999866508,0.00223781,84444.0,84443.0,0.23684615]
[1744999866928,0.23908116,84444.0,84442.0,0.23684779]
[1744999867927,0.00223781,84444.0,84442.0,0.23684779]
[1744999868695,0.23908124,84444.0,84442.0,0.23684779]
[1744999869460,0.2509234,84444.0,84441.0,0.24869345]
[1744999871357,0.23685457,84440.0,84438.0,0.01163051]
[1744999871530,0.23685457,84440.0,84437.0,0.59535984]
[1744999871726,0.00223956,84439.0,84437.0,0.59535984]
[1744999872132,0.00223956,84439.0,84437.0,0.01849901]
[1744999872486,0.01184272,84440.0,84437.0,0.01849901]
[1744999873182,0.23685939,84439.0,84437.0,0.01849901]
[1744999873387,0.24869782,84440.0,84437.0,0.01849901]
[1744999873599,0.00223956,84438.0,84437.0,0.01849901]
[1744999873744,0.24869782,84440.0,84437.0,0.01849901]
[1744999873945,0.00223956,84438.0,84437.0,0.01849901]
[1744999874195,0.24869782,84440.0,84437.0,0.01849901]
[1744999874709,0.00223956,84439.0,84437.0,0.01849901]
[1744999875013,0.00223956,84439.0,84437.0,0.25536014]
[1744999875169,0.00223956,84439.0,84437.0,0.26703106]
[1744999876312,0.23909711,84439.0,84437.0,0.26703106]
[1744999877055,0.00223956,84439.0,84437.0,0.26703106]
[1744999878456,0.00206042,84439.0,84437.0,0.26703106]
[1744999878688,0.00206042,84439.0,84438.0,0.23686018]
[1744999882912,0.00206042,84439.0,84436.0,0.24955115]
[1744999883103,0.00206042,84439.0,84437.0,0.23686298]
[1744999885979,0.25076076,84439.0,84436.0,0.24946388]
[1744999889385,0.23686298,84437.0,84436.0,0.01259964]
[1744999889564,0.01390328,84439.0,84436.0,0.24946508]
[1744999889783,0.00222004,84437.0,84436.0,0.24946508]
[1744999889934,0.24870112,84439.0,84436.0,0.24946508]
[1744999890135,0.00222141,84437.0,84436.0,0.24946508]
[1744999890736,0.24870112,84439.0,84436.0,0.24946508]
[1744999890982,0.00222141,84437.0,84436.0,0.24946508]
[1744999891182,0.24870112,84439.0,84436.0,0.24946508]
[1744999891472,0.23686102,84438.0,84436.0,0.01259964]
[1744999891678,0.00222141,84437.0,84436.0,0.01259964]
[1744999892038,0.00222141,84437.0,84436.0,0.24946543]
[1744999892286,0.24870112,84439.0,84436.0,0.24946543]
[1744999892525,0.00222141,84438.0,84436.0,0.24946543]
[1744999893031,0.00222141,84438.0,84437.0,0.23686298]
[1744999893535,0.00222141,84438.0,84436.0,0.24946543]
[1744999898218,0.23908262,84438.0,84436.0,0.24946543]
[1744999898696,0.23686298,84437.0,84436.0,0.01259964]
[1744999899182,0.23908439,84437.0,84436.0,0.01259964]
[1744999901586,0.28688439,84437.0,84436.0,0.01259964]
[1744999908440,0.23908439,84437.0,84436.0,0.01259964]
[1744999912212,0.00222141,84437.0,84436.0,0.24946543]
[1744999912415,0.23908439,84437.0,84436.0,0.01259964]
[1744999912631,0.23686298,84437.0,84436.0,0.01259964]
[1744999912837,0.01184272,84440.0,84437.0,0.24870612]
[1744999913161,0.23686298,84438.0,84436.0,0.01259964]
[1744999913472,0.23686298,84437.0,84436.0,0.01259964]
[1744999913677,0.24868275,84445.0,84441.0,0.01184258]
[1744999913884,0.23684674,84443.0,84440.0,0.24869727]
[1744999914215,0.24868794,84444.0,84440.0,0.24869727]
[1744999914418,0.24868794,84444.0,84440.0,0.01184272]
[1744999914621,0.24868794,84444.0,84440.0,0.24869659]
[1744999914934,0.23684666,84443.0,84441.0,0.23684907]
[1744999915139,0.24868896,84443.0,84440.0,0.24869652]
[1744999915380,0.23684953,84442.0,84440.0,0.24869652]
[1744999917146,0.23684953,84442.0,84440.0,0.01184272]
[1744999918140,0.0118423,84443.0,84440.0,0.24869711]
[1744999918294,0.0118423,84443.0,84439.0,0.24870013]
[1744999918295,0.23684896,84442.0,84439.0,0.24870013]
[1744999918568,0.23684896,84442.0,84440.0,0.23685352]
[1744999918739,0.24869381,84443.0,84440.0,0.23685352]
[1744999918947,0.23684957,84442.0,84439.0,0.24870013]
[1744999919245,0.24869201,84442.0,84439.0,0.24870013]